fUSD/lending_fUSD_20250611
["ID","MTS","AMOUNT","RATE_DAILY","PERIOD"]
[365443667,1749676255070,-490.0,0.00019342,2]
[365443668,1749676255079,-490.0,0.00019342,2]
[365443669,1749676255089,-490.0,0.00019342,2]
[365443670,1749676255099,-793.0,0.00019342,2]
[365443671,1749676255108,-547.93,0.00019342,2]
[365443672,1749676255118,-5353.31,0.00019342,2]
[365443673,1749676255128,-480.0,0.00019342,2]
[365443674,1749676255137,-470.0,0.00019342,2]
[365443675,1749676255147,-480.0,0.00019342,2]
[365443676,1749676255156,-5384.76,0.00019342,2]
[365443677,1749676255166,-490.0,0.00019342,2]
[365443678,1749676255175,-2388.32,0.00019342,2]
[365443679,1749676255184,-490.0,0.00019342,2]
[365443680,1749676255194,-490.0,0.00019342,2]
[365443681,1749676255204,-490.0,0.00019342,2]
[365443682,1749676255214,-490.0,0.00019342,2]
[365443683,1749676255223,-544.01,0.00019342,2]
[365443684,1749676255232,-597.7347347,0.00019342,2]
[365443685,1749676255241,-490.0,0.00019342,2]
[365443686,1749676255251,-1921.82,0.00019342,2]
[365443687,1749676255261,-490.0,0.00019342,2]
[365443688,1749676255271,-490.0,0.00019342,2]
[365443689,1749676255280,-490.0,0.00019342,2]
[365443690,1749676255289,-480.0,0.00019342,2]
[365443691,1749676255299,-214.88,0.00019342,2]
[365443692,1749676255309,-500.0,0.00019347,2]
[365443693,1749676255318,-200.0,0.00019347,2]
[365443694,1749676255328,-1650.62165361,0.00019352,2]
[365443695,1749676255337,-305.78,0.00019372,2]
[365443696,1749676255347,-787.1729907,0.00019376,2]
[365443697,1749676255357,-678.73687483,0.00019376,2]
[365443698,1749676255366,-234.91397695,0.0001938,2]
[365443699,1749676255375,-802.0,0.00019388,2]
[365443700,1749676255385,-1673.0,0.00019388,2]
[365443701,1749676255394,-1400.0,0.000194,7]
[365443702,1749676255403,-201.15591562,0.000194,2]
[365443703,1749676255413,-1040.23901128,0.00019406,2]
[365443704,1749676255422,-213.16334784,0.00019406,2]
[365443705,1749676255431,-787.1729907,0.00019418,2]
[365443706,1749676255441,-1000.0,0.00019423,2]
[365443707,1749676255449,-1650.62165361,0.00019443,2]
[365443708,1749676255459,-787.1729907,0.00019461,2]
[365443709,1749676255468,-201.15591562,0.00019463,2]
[365443710,1749676255477,-150.0,0.00019479,2]
[365443711,1749676255486,-266.73483068,0.00019479,2]
[365443712,1749676255495,-200.45762208,0.00019479,2]
[365443713,1749676255505,-200.0,0.00019479,2]
[365443714,1749676255515,-150.0,0.00019479,2]
[365443715,1749676255524,-500.0,0.00019479,2]
[365443716,1749676255533,-150.0,0.00019479,2]
[365443717,1749676255542,-150.0,0.00019479,2]
[365443718,1749676255552,-500.0,0.00019479,2]
[365443719,1749676255561,-200.0,0.00019479,2]
[365443720,1749676255570,-500.0,0.00019479,2]
[365443721,1749676255579,-200.0,0.00019479,2]
[365443722,1749676255589,-150.0,0.00019479,2]
[365443723,1749676255598,-500.0,0.00019479,2]
[365443724,1749676255607,-150.0,0.00019479,2]
[365443725,1749676255616,-150.0,0.00019479,2]
[365443726,1749676255630,-500.0,0.00019479,2]
[365443727,1749676255639,-150.0,0.00019479,2]
[365443728,1749676255648,-200.0,0.00019479,2]
[365443729,1749676255657,-500.0,0.00019479,2]
[365443730,1749676255667,-500.0,0.00019479,2]
[365443731,1749676255676,-201.14694014,0.00019479,2]
[365443732,1749676255685,-1040.23901128,0.00019488,2]
[365443733,1749676255695,-151.0,0.00019491,2]
[365443734,1749676255704,-213.883255,0.00019491,2]
[365443735,1749676255715,-213.883255,0.00019491,2]
[365443736,1749676255724,-151.791224,0.00019491,2]
[365443737,1749676255733,-151.0,0.00019491,2]
[365443738,1749676255742,-151.0,0.00019491,2]
[365443739,1749676255751,-151.611904,0.00019491,2]
[365443740,1749676255760,-700.04725941,0.00019496,2]
[365443741,1749676255771,-213.883255,0.000195,2]
[365443742,1749676255779,-213.883255,0.000195,2]
[365443743,1749676255788,-213.883255,0.000195,2]
[365443744,1749676255801,-213.883255,0.000195,2]
[365443745,1749676255810,-151.0,0.000195,2]
[365443746,1749676255819,-151.0,0.000195,2]
[365443747,1749676255827,-173.399303,0.000195,2]
[365443748,1749676255836,-500.0,0.000195,2]
[365443749,1749676255845,-200.0,0.000195,7]
[365443750,1749676255854,-500.0,0.000195,2]
[365443751,1749676255863,-500.0,0.000195,2]
[365443752,1749676255872,-151.0,0.00019501,2]
[365443753,1749676255881,-156.806276,0.00019501,2]
[365443754,1749676255890,-156.806276,0.00019501,2]
[365443755,1749676255898,-151.0,0.00019501,2]
[365443756,1749676255908,-151.0,0.00019501,2]
[365443757,1749676255917,-151.0,0.00019501,2]
[365443758,1749676255926,-151.0,0.00019501,2]
[365443759,1749676255935,-151.0,0.00019501,2]
[365443760,1749676255945,-151.0,0.00019501,2]
[365443761,1749676255954,-151.0,0.00019501,2]
[365443762,1749676255963,-151.0,0.00019501,2]
[365443763,1749676255971,-9833.2451556,0.00019501,2]
[365443764,1749676255981,-1324.680641,0.00019501,2]
[365443765,1749676255990,-1324.680641,0.00019501,2]
[365443766,1749676255999,-70991.99448064,0.00019501,2]
[365443767,1749676256035,-886.72,0.00019501,2]
[365443768,1749676256046,-1048.1033486,0.00019501,2]
[365443769,1749676256057,-1237.31323416,0.00019501,2]
[365443770,1749676256068,-4021.7372004,0.00019501,2]
[365443771,1749676256079,-473.66435226,0.00019501,2]
[365443772,1749676256090,-5827.8996,0.00019501,2]
[365443773,1749676256102,-1587.03359657,0.00019501,2]
[365443774,1749676283379,700.0,0.00015269,2]
[365443775,1749676284822,700.0,0.00016639,2]
[365443776,1749676286834,700.0,0.00017735,2]
[365443777,1749676314613,167.91,0.00017884,2]
[365443778,1749676322188,500.0,0.00016365,2]
[365443779,1749676337794,874.1,0.00024658,120]
[365443780,1749676452286,204.0,0.00017393,2]
[365443781,1749676481822,204.0,0.00017393,2]
[365443782,1749676514911,800.0,0.00015269,2]
[365443783,1749676516960,800.0,0.00016639,2]
[365443784,1749676518985,800.0,0.00017735,2]
[365443785,1749676539929,500.0,0.00016365,2]
[365443786,1749676550351,151.0,0.00017884,2]
[365443787,1749676567783,151.0,0.00017673,2]
[365443788,1749676585016,151.0,0.00017398,2]
[365443789,1749676601639,205.0,0.00017393,2]
[365443790,1749676601666,151.0,0.00017216,2]
[365443791,1749676618500,151.0,0.00017094,2]
[365443792,1749676680147,388.48,0.00013699,2]
[365443794,1749676694643,1210.7,0.00017982,2]
[365443795,1749676728356,1236.46,0.00017967,2]
[365443796,1749676756598,500.0,0.00016365,2]
[365443797,1749676766642,1001.17156769,0.000179,2]
[365443798,1749676769156,152.0,0.00016822,3]
[365443799,1749676805383,150.0,0.00017983,7]
[365443800,1749676812186,204.0,0.00017814,2]
[365443801,1749676839233,1158.57,0.00016079,2]
[365443802,1749676871384,200.0,0.00017814,2]
[365443803,1749676903919,700.0,0.00015269,2]
[365443804,1749676905493,700.0,0.00016639,2]
[365443805,1749676907109,700.0,0.00017735,2]
[365443807,1749676958397,193.71877947,0.00017892,2]
[365443808,1749676958421,242.60122053,0.00017892,2]
[365443809,1749676970580,200.0,0.00017892,2]
[365443810,1749676983176,500.0,0.00016365,2]
[365443811,1749676988831,402.8,0.00017908,2]
[365443812,1749677081498,205.0,0.00017814,2]
[365443813,1749677143883,600.0,0.00015269,2]
[365443814,1749677145709,600.0,0.00016639,2]
[365443815,1749677147077,600.0,0.00017735,2]
[365443816,1749677154474,8305.16740755,0.0001798,2]
[365443817,1749677193806,919.37,0.00017889,2]
[365443818,1749677201662,500.0,0.00016365,2]
[365443819,1749677207240,1000.0,0.00017889,2]
[365443820,1749677221274,-35749.9189345,0.0002019,30]
[365443821,1749677221298,-833.29909032,0.000202,30]
[365443822,1749677221326,-605.19229871,0.0002022,30]
[365443823,1749677235079,-53537.11,0.0002019,20]
[365443825,1749677254129,-204.0,0.0001822,2]
[365443826,1749677254150,-177.45995214,0.00018259,2]
[365443827,1749677254171,-300.0,0.00018301,2]
[365443828,1749677254193,-624.96295625,0.00018343,2]
[365443829,1749677272656,-3500.0,0.00018,2]
[365443830,1749677277901,415.31018951,0.000179,2]
[365443831,1749677278043,1063.85,0.00017904,2]
[365443832,1749677282238,300.0,0.00017999,2]
[365443836,1749677313651,500.0,0.00017999,2]
[365443837,1749677313714,637.05565667,0.00017999,2]
[365443838,1749677313749,500.0,0.00017999,2]
[365443839,1749677313807,427.85081919,0.00017999,2]
[365443840,1749677315888,979.999999,0.000151,2]
[365443841,1749677331130,165.8,0.00017887,2]
[365443845,1749677342970,1196.079147,0.0001791,2]
[365443849,1749677378173,500.0,0.00016384,2]
[365443850,1749677379778,500.0,0.00017754,2]
[365443854,1749677385992,666.0,0.00017891,2]
[365443855,1749677396874,620.42188655,0.00017982,2]
[365443856,1749677402130,550.0,0.00017999,2]
[365443857,1749677402234,1200.0,0.00017999,2]
[365443858,1749677410944,250.0,0.00017889,2]
[365443859,1749677422176,500.0,0.00016384,2]
[365443884,1749677431662,-2277.1,0.00018,2]
[365443885,1749677431673,-836.49543793,0.00018,2]
[365443886,1749677431776,-1934.89487648,0.00018,2]
[365443887,1749677431836,-416.85355078,0.00018,2]
[365443888,1749677431847,-630.65768659,0.00018,2]
[365443889,1749677431858,-7287.14505562,0.00018,2]
[365443890,1749677431870,-1620.66199756,0.00018,2]
[365443891,1749677431897,-1753.20076315,0.00018,2]
[365443892,1749677431908,-671.53326557,0.00018,2]
[365443893,1749677431958,-36361.16636796,0.00018,2]
[365443894,1749677432023,-491.23384,0.00018,2]
[365443897,1749677432034,-2771.01883403,0.00018,2]
[365443905,1749677437515,-23018.40654484,0.00018,2]
[365443908,1749677437579,-1377.66550078,0.00018,2]
[365443909,1749677437691,-426.32174474,0.00018,2]
[365443910,1749677437914,-55514.22686825,0.00018,2]
[365443911,1749677437924,-205.0,0.0001822,2]
[365443912,1749677437933,-205.0,0.0001822,2]
[365443913,1749677437942,-533.60704375,0.00018343,2]
[365443914,1749677437952,-303.0,0.00018352,2]
[365443915,1749677437961,-301.57,0.00018358,2]
[365443916,1749677437970,-301.96,0.00018358,2]
[365443917,1749677437979,-303.41,0.0001839,2]
[365443918,1749677437989,-300.16,0.00018479,2]
[365443919,1749677437998,-177.45995214,0.00018479,2]
[365443920,1749677438009,-151.0,0.00018496,2]
[365443921,1749677438020,-300.8,0.00018519,2]
[365443922,1749677438030,-300.0,0.0001852,2]
[365443923,1749677438039,-1161.34,0.00018521,2]
[365443924,1749677438049,-1350.31,0.00018521,2]
[365443926,1749677438058,-151.0,0.00018522,2]
[365443927,1749677438067,-1957.856,0.00018522,2]
[365443928,1749677438077,-529.30038636,0.00018522,2]
[365443929,1749677438089,-207.4,0.00018522,2]
[365443930,1749677438099,-166.66,0.00018549,2]
[365443931,1749677438108,-200.0,0.00018556,2]
[365443933,1749677438117,-2030.296672,0.00018577,2]
[365443935,1749677438127,-2105.41764886,0.00018632,2]
[365443936,1749677438135,-819.63175357,0.00018687,2]
[365443937,1749677438144,-273.0,0.000188,5]
[365443938,1749677438153,-500.0,0.0001885,2]
[365443939,1749677438162,-400.0,0.000189,6]
[365443940,1749677438171,-219.23291533,0.000189,2]
[365443941,1749677438180,-219.23291504,0.00018934,2]
[365443942,1749677438190,-219.23291504,0.00018969,2]
[365443943,1749677438199,-250.0,0.00019,2]
[365443944,1749677438208,-219.23291504,0.00019003,2]
[365443945,1749677438217,-219.23291504,0.00019038,2]
[365443946,1749677438226,-1301.80449962,0.00019068,2]
[365443947,1749677438235,-219.23291504,0.00019072,2]
[365443948,1749677438244,-658.3371212,0.00019077,2]
[365443949,1749677438255,-163.07871679,0.00019078,2]
[365443950,1749677438264,-250.64495421,0.00019078,2]
[365443951,1749677438273,-1850.5529,0.00019078,2]
[365443952,1749677438282,-1000.0,0.00019078,2]
[365443953,1749677438291,-1920.4841,0.00019078,2]
[365443954,1749677438301,-2079.873,0.00019078,2]
[365443955,1749677438310,-500.0,0.00019078,2]
[365443956,1749677438319,-12703.0064,0.00019078,2]
[365443957,1749677438329,-2500.0,0.00019078,2]
[365443958,1749677438338,-5000.0,0.00019078,2]
[365443959,1749677438347,-271.9607,0.00019078,2]
[365443960,1749677438357,-1000.0,0.00019078,2]
[365443961,1749677438366,-413.0,0.00019079,2]
[365443962,1749677438375,-752.4202,0.00019096,2]
[365443963,1749677438384,-800.0,0.000191,6]
[365443964,1749677438393,-219.23291504,0.00019107,2]
[365443965,1749677438402,-971.353715,0.00019115,2]
[365443966,1749677438411,-500.0,0.00019124,2]
[365443967,1749677438421,-219.23291504,0.00019141,2]
[365443968,1749677438430,-833.29909032,0.00019163,2]
[365443969,1749677438439,-163.15,0.00019167,2]
[365443970,1749677438448,-163.15,0.00019168,2]
[365443971,1749677438458,-1044.74,0.00019168,2]
[365443972,1749677438467,-219.23291504,0.00019176,2]
[365443973,1749677438475,-740.38876631,0.00019177,2]
[365443974,1749677438487,-2590.000001,0.00019177,2]
[365443975,1749677439304,2133.40624543,0.00017889,2]
[365443976,1749677439329,1092.73375457,0.00017889,2]
[365444004,1749677439897,-3214.5295648,0.00019177,2]
[365444006,1749677439907,-155.40074686,0.00019177,2]
[365444008,1749677439917,-542.58208474,0.00019177,2]
[365444011,1749677439931,-179.74980615,0.00019177,2]
[365444013,1749677439942,-480.0,0.00019178,2]
[365444014,1749677439951,-490.0,0.00019178,2]
[365444015,1749677439961,-490.0,0.00019178,2]
[365444016,1749677439971,-490.0,0.00019178,2]
[365444017,1749677439981,-490.0,0.00019178,2]
[365444018,1749677439990,-490.0,0.00019178,2]
[365444020,1749677440000,-480.0,0.00019178,2]
[365444022,1749677440011,-480.0,0.00019178,2]
[365444024,1749677440025,-490.0,0.00019178,2]
[365444026,1749677440036,-481.23,0.00019178,2]
[365444028,1749677440046,-480.0,0.00019178,2]
[365444030,1749677440056,-420.0,0.00019178,2]
[365444031,1749677440067,-490.0,0.00019178,2]
[365444032,1749677440077,-480.0,0.00019178,2]
[365444033,1749677440088,-250.0,0.00019178,2]
[365444034,1749677440097,-490.0,0.00019178,2]
[365444035,1749677440107,-480.0,0.00019178,2]
[365444036,1749677440117,-480.0,0.00019178,2]
[365444037,1749677440127,-480.0,0.00019178,2]
[365444038,1749677440138,-480.0,0.00019178,2]
[365444039,1749677440147,-480.0,0.00019178,2]
[365444040,1749677440157,-480.0,0.00019178,2]
[365444041,1749677440167,-480.0,0.00019178,2]
[365444042,1749677440177,-561.14,0.00019178,2]
[365444043,1749677440187,-480.0,0.00019178,2]
[365444044,1749677440197,-490.0,0.00019178,2]
[365444045,1749677440208,-480.0,0.00019178,2]
[365444046,1749677440218,-480.0,0.00019178,2]
[365444047,1749677440228,-480.0,0.00019178,2]
[365444048,1749677440238,-480.0,0.00019178,2]
[365444049,1749677440248,-480.0,0.00019178,2]
[365444050,1749677440260,-480.0,0.00019178,2]
[365444051,1749677440271,-480.0,0.00019178,2]
[365444052,1749677440280,-490.0,0.00019178,2]
[365444053,1749677440291,-480.0,0.00019178,2]
[365444054,1749677440301,-480.0,0.00019178,2]
[365444055,1749677440311,-480.0,0.00019178,2]
[365444056,1749677440322,-480.0,0.00019178,2]
[365444057,1749677440332,-480.0,0.00019178,2]
[365444058,1749677440342,-480.0,0.00019178,2]
[365444059,1749677440353,-266.51769385,0.00019178,2]
[365444060,1749677440363,-480.0,0.00019178,2]
[365444061,1749677440373,-420.0,0.00019178,2]
[365444062,1749677440384,-480.0,0.00019178,2]
[365444063,1749677440395,-302.96950787,0.00019178,2]
[365444064,1749677440405,-300.94560297,0.00019178,2]
[365444065,1749677440415,-480.0,0.00019178,2]
[365444066,1749677440426,-480.0,0.00019178,2]
[365444067,1749677440436,-302.52624455,0.00019178,2]
[365444068,1749677440446,-517.33,0.00019178,2]
[365444069,1749677440457,-341.20000045,0.00019178,2]
[365444070,1749677440468,-480.0,0.00019178,2]
[365444071,1749677440479,-480.0,0.00019178,2]
[365444072,1749677440489,-362.54025413,0.00019178,2]
[365444073,1749677440500,-480.0,0.00019178,2]
[365444074,1749677440513,-420.0,0.00019178,2]
[365444075,1749677440523,-490.0,0.00019178,2]
[365444076,1749677440533,-480.0,0.00019178,2]
[365444077,1749677440544,-480.0,0.00019178,2]
[365444078,1749677440554,-480.0,0.00019178,2]
[365444079,1749677440565,-480.0,0.00019178,2]
[365444080,1749677440575,-480.0,0.00019178,2]
[365444081,1749677440586,-480.0,0.00019178,2]
[365444082,1749677440596,-480.0,0.00019178,2]
[365444083,1749677440606,-480.0,0.00019178,2]
[365444084,1749677440617,-490.0,0.00019178,2]
[365444085,1749677440627,-209.9510993,0.00019178,2]
[365444086,1749677440637,-480.0,0.00019178,2]
[365444087,1749677440649,-480.0,0.00019178,2]
[365444088,1749677440659,-526.47713452,0.00019178,2]
[365444089,1749677440669,-480.0,0.00019178,2]
[365444090,1749677440679,-480.0,0.00019178,2]
[365444091,1749677440690,-480.0,0.00019178,2]
[365444092,1749677440700,-480.0,0.00019178,2]
[365444093,1749677440711,-480.0,0.00019178,2]
[365444094,1749677440721,-420.0,0.00019178,2]
[365444095,1749677440731,-480.0,0.00019178,2]
[365444096,1749677440751,-583.38351739,0.00019178,2]
[365444097,1749677440763,-480.0,0.00019178,2]
[365444098,1749677440774,-480.0,0.00019178,2]
[365444099,1749677440785,-480.0,0.00019178,2]
[365444100,1749677440796,-480.0,0.00019178,2]
[365444101,1749677440807,-480.0,0.00019178,2]
[365444102,1749677440818,-490.0,0.00019178,2]
[365444103,1749677440829,-275.51184442,0.00019178,2]
[365444104,1749677440840,-480.0,0.00019178,2]
[365444105,1749677440851,-480.0,0.00019178,2]
[365444106,1749677440861,-480.0,0.00019178,2]
[365444107,1749677440872,-480.0,0.00019178,2]
[365444108,1749677440882,-480.0,0.00019178,2]
[365444109,1749677440893,-480.0,0.00019178,2]
[365444110,1749677440904,-490.0,0.00019178,2]
[365444111,1749677440914,-480.0,0.00019178,2]
[365444112,1749677440925,-480.0,0.00019178,2]
[365444113,1749677440936,-480.0,0.00019178,2]
[365444114,1749677440946,-360.0,0.00019178,2]
[365444115,1749677440956,-480.0,0.00019178,2]
[365444116,1749677440967,-480.0,0.00019178,2]
[365444117,1749677440977,-480.0,0.00019178,2]
[365444118,1749677440988,-480.0,0.00019178,2]
[365444119,1749677440998,-480.0,0.00019178,2]
[365444120,1749677441011,-480.0,0.00019178,2]
[365444121,1749677441023,-490.0,0.00019178,2]
[365444122,1749677441037,-480.0,0.00019178,2]
[365444123,1749677441052,-490.0,0.00019178,2]
[365444124,1749677441063,-480.0,0.00019178,2]
[365444125,1749677441074,-480.0,0.00019178,2]
[365444126,1749677441085,-480.0,0.00019178,2]
[365444127,1749677441097,-480.0,0.00019178,2]
[365444128,1749677441108,-480.0,0.00019178,2]
[365444129,1749677441119,-490.0,0.00019178,2]
[365444130,1749677441130,-419.61731933,0.00019178,2]
[365444131,1749677441140,-480.0,0.00019178,2]
[365444132,1749677441150,-340.82608249,0.00019178,2]
[365444133,1749677441161,-480.0,0.00019178,2]
[365444134,1749677441171,-480.0,0.00019178,2]
[365444135,1749677441181,-480.0,0.00019178,2]
[365444136,1749677441191,-490.0,0.00019178,2]
[365444137,1749677441201,-490.0,0.00019178,2]
[365444138,1749677441212,-480.0,0.00019178,2]
[365444139,1749677441222,-490.0,0.00019178,2]
[365444140,1749677441232,-480.0,0.00019178,2]
[365444141,1749677441242,-480.0,0.00019178,2]
[365444142,1749677441253,-490.0,0.00019178,2]
[365444143,1749677441263,-1000.0,0.00019178,2]
[365444144,1749677441274,-480.0,0.00019178,2]
[365444145,1749677441285,-480.0,0.00019178,2]
[365444146,1749677441295,-480.0,0.00019178,2]
[365444147,1749677441306,-630.08,0.00019178,2]
[365444148,1749677441316,-480.0,0.00019178,2]
[365444149,1749677441326,-263.77250977,0.00019178,2]
[365444150,1749677441336,-480.0,0.00019178,2]
[365444151,1749677441346,-480.0,0.00019178,2]
[365444152,1749677441356,-480.0,0.00019178,2]
[365444153,1749677441368,-480.0,0.00019178,2]
[365444154,1749677441378,-480.0,0.00019178,2]
[365444155,1749677441388,-490.0,0.00019178,2]
[365444156,1749677441398,-490.0,0.00019178,2]
[365444157,1749677441408,-420.0,0.00019178,2]
[365444158,1749677441418,-480.0,0.00019178,2]
[365444159,1749677441428,-490.0,0.00019178,2]
[365444160,1749677441439,-490.0,0.00019178,2]
[365444161,1749677441449,-480.0,0.00019178,2]
[365444162,1749677441460,-480.0,0.00019178,2]
[365444163,1749677441470,-160.47004924,0.00019178,2]
[365444164,1749677441480,-480.0,0.00019178,2]
[365444165,1749677441490,-480.0,0.00019178,2]
[365444166,1749677441500,-490.0,0.00019178,2]
[365444167,1749677441512,-603.35281434,0.00019178,2]
[365444168,1749677441523,-480.0,0.00019178,2]
[365444169,1749677441533,-360.0,0.00019178,2]
[365444170,1749677441543,-490.0,0.00019178,2]
[365444171,1749677441553,-490.0,0.00019178,2]
[365444172,1749677441564,-490.0,0.00019178,2]
[365444173,1749677441574,-490.0,0.00019178,2]
[365444174,1749677441584,-480.0,0.00019178,2]
[365444175,1749677441594,-507.91,0.00019178,2]
[365444176,1749677441604,-480.0,0.00019178,2]
[365444177,1749677441613,-480.0,0.00019178,2]
[365444178,1749677441623,-540.79,0.00019178,2]
[365444179,1749677441634,-490.0,0.00019178,2]
[365444180,1749677441643,-490.0,0.00019178,2]
[365444181,1749677441654,-480.0,0.00019178,2]
[365444182,1749677441664,-445.60888782,0.00019178,2]
[365444183,1749677441674,-490.0,0.00019178,2]
[365444184,1749677441684,-490.0,0.00019178,2]
[365444185,1749677441694,-490.0,0.00019178,2]
[365444186,1749677441704,-226.22947708,0.00019178,2]
[365444187,1749677441714,-490.0,0.00019178,2]
[365444188,1749677441724,-490.0,0.00019178,2]
[365444189,1749677441734,-628.62,0.00019178,2]
[365444190,1749677441744,-490.0,0.00019178,2]
[365444191,1749677441754,-480.0,0.00019178,2]
[365444192,1749677441764,-490.0,0.00019178,2]
[365444193,1749677441774,-490.0,0.00019178,2]
[365444194,1749677441784,-490.0,0.00019178,2]
[365444195,1749677441794,-463.74737263,0.00019178,2]
[365444196,1749677441805,-490.0,0.00019178,2]
[365444197,1749677441815,-589.25,0.00019178,2]
[365444198,1749677441825,-480.0,0.00019178,2]
[365444199,1749677441835,-480.0,0.00019178,2]
[365444200,1749677441845,-490.0,0.00019178,2]
[365444201,1749677441856,-565.93,0.00019178,2]
[365444202,1749677441866,-528.8,0.00019178,2]
[365444203,1749677441876,-490.0,0.00019178,2]
[365444204,1749677441886,-470.0,0.00019178,2]
[365444205,1749677441896,-490.0,0.00019178,2]
[365444206,1749677441906,-410.00000032,0.00019178,2]
[365444207,1749677441917,-490.0,0.00019178,2]
[365444208,1749677441927,-480.0,0.00019178,2]
[365444209,1749677441937,-490.0,0.00019178,2]
[365444210,1749677441947,-490.0,0.00019178,2]
[365444211,1749677441974,-480.0,0.00019178,2]
[365444212,1749677441995,-480.0,0.00019178,2]
[365444213,1749677442008,-470.0,0.00019178,2]
[365444214,1749677442023,-470.0,0.00019178,2]
[365444215,1749677442034,-480.0,0.00019178,2]
[365444216,1749677442044,-490.0,0.00019178,2]
[365444217,1749677442056,-565.4,0.00019178,2]
[365444218,1749677442067,-480.0,0.00019178,2]
[365444219,1749677442077,-490.0,0.00019178,2]
[365444220,1749677442089,-490.0,0.00019178,2]
[365444221,1749677442100,-480.0,0.00019178,2]
[365444222,1749677442111,-490.0,0.00019178,2]
[365444223,1749677442122,-518.31269355,0.00019178,2]
[365444224,1749677442133,-490.0,0.00019178,2]
[365444225,1749677442144,-480.0,0.00019178,2]
[365444226,1749677442155,-624.87,0.00019178,2]
[365444227,1749677442166,-482.65,0.00019178,2]
[365444228,1749677442176,-490.0,0.00019178,2]
[365444229,1749677442187,-480.0,0.00019178,2]
[365444230,1749677442198,-490.0,0.00019178,2]
[365444231,1749677442209,-490.0,0.00019178,2]
[365444232,1749677442219,-236.88603141,0.00019178,2]
[365444233,1749677442230,-490.0,0.00019178,2]
[365444234,1749677442241,-576.92,0.00019178,2]
[365444235,1749677442252,-257.49371581,0.00019178,2]
[365444236,1749677442263,-490.0,0.00019178,2]
[365444237,1749677442275,-490.0,0.00019178,2]
[365444238,1749677442286,-480.0,0.00019178,2]
[365444239,1749677442299,-480.0,0.00019178,2]
[365444243,1749677442641,-480.0,0.00019178,2]
[365444244,1749677442651,-480.0,0.00019178,2]
[365444245,1749677442661,-247.37122454,0.00019178,2]
[365444246,1749677442670,-480.0,0.00019178,2]
[365444247,1749677442680,-593.16804793,0.00019178,2]
[365444248,1749677442689,-520.43,0.00019178,2]
[365444249,1749677442699,-490.0,0.00019178,2]
[365444250,1749677442708,-490.0,0.00019178,2]
[365444251,1749677442718,-633.67,0.00019178,2]
[365444252,1749677442728,-480.0,0.00019178,2]
[365444253,1749677442738,-580.6,0.00019178,2]
[365444254,1749677442748,-600.41,0.00019178,2]
[365444255,1749677442759,-490.0,0.00019178,2]
[365444256,1749677442768,-390.0,0.00019178,2]
[365444257,1749677442778,-480.0,0.00019178,2]
[365444258,1749677442788,-631.34,0.00019178,2]
[365444259,1749677442798,-490.0,0.00019178,2]
[365444260,1749677442810,-484.83,0.00019178,2]